Department Family,Entity,Date,Expenses Type,Expense Area,Supplier,Transaction Number,  Total  ,
Department of Health,The Christie NHS Foundation Trust,27/05/2021,Medical Service Contract, Clin Support & Spec Surgery,MEDRAY UK,0000667235," 31,255.86 ",
Department of Health,The Christie NHS Foundation Trust,27/05/2021,Maintenace Contract for PACs Support, Clin Support & Spec Surgery,GE MEDICAL SYSTEMS LIMITED,0000667124," 33,249.99 ",
Department of Health,The Christie NHS Foundation Trust,06/05/2021,Medical Systems Equipment , Clin Support & Spec Surgery,NHS SUPPLY CHAIN,0000665456," 38,285.67 ",
Department of Health,The Christie NHS Foundation Trust,13/05/2021,Medical Systems Equipment , Clin Support & Spec Surgery,NHS SUPPLY CHAIN,0000666371," 47,013.00 ",
Department of Health,The Christie NHS Foundation Trust,13/05/2021,Passenger Fees, Clin Support & Spec Surgery,PASSENGER CARS GROUP,0000662253," 67,940.10 ",
Department of Health,The Christie NHS Foundation Trust,27/05/2021, Drugs, Drugs,STOCKPORT NHS FOUNDATION TRUST,0000660508," 26,721.00 ",
Department of Health,The Christie NHS Foundation Trust,20/05/2021, Drugs, Drugs,HEALTHCARE AT HOME LTD,0000668030," 28,661.00 ",
Department of Health,The Christie NHS Foundation Trust,06/05/2021, Drugs, Drugs,BAXTER HEALTHCARE LTD,0000665463," 32,312.71 ",
Department of Health,The Christie NHS Foundation Trust,06/05/2021, Drugs, Drugs,THE CHRISTIE CLINIC (HCA),0000665448," 34,513.00 ",
Department of Health,The Christie NHS Foundation Trust,13/05/2021, Drugs, Drugs,THE CHRISTIE CLINIC (HCA),0000667178," 37,411.00 ",
Department of Health,The Christie NHS Foundation Trust,06/05/2021, Drugs, Drugs,HEALTHCARE AT HOME LTD,0000666081," 40,456.00 ",
Department of Health,The Christie NHS Foundation Trust,27/05/2021, Drugs, Drugs,ALCURA UK LIMITED,0000668532," 58,352.31 ",
Department of Health,The Christie NHS Foundation Trust,27/05/2021, Drugs, Drugs,BAXTER HEALTHCARE LTD,0000666964," 65,432.59 ",
Department of Health,The Christie NHS Foundation Trust,06/05/2021, Drugs, Drugs,EAST CHESHIRE NHS TRUST,0000663161," 81,081.22 ",
Department of Health,The Christie NHS Foundation Trust,27/05/2021, Drugs, Drugs,BAXTER HEALTHCARE LTD,0000667065," 85,127.15 ",
Department of Health,The Christie NHS Foundation Trust,13/05/2021, Drugs, Drugs,BAXTER HEALTHCARE LTD,0000665976," 87,477.55 ",
Department of Health,The Christie NHS Foundation Trust,27/05/2021, Drugs, Drugs,BAXTER HEALTHCARE LTD,0000666957," 87,799.58 ",
Department of Health,The Christie NHS Foundation Trust,20/05/2021, Drugs, Drugs,BAXTER HEALTHCARE LTD,0000667961," 88,579.64 ",
Department of Health,The Christie NHS Foundation Trust,20/05/2021, Drugs, Drugs,BAXTER HEALTHCARE LTD,0000666517," 88,867.82 ",
Department of Health,The Christie NHS Foundation Trust,06/05/2021, Drugs, Drugs,BAXTER HEALTHCARE LTD,0000665458," 90,050.84 ",
Department of Health,The Christie NHS Foundation Trust,06/05/2021, Drugs, Drugs,BAXTER HEALTHCARE LTD,0000665941," 96,479.95 ",
Department of Health,The Christie NHS Foundation Trust,06/05/2021, Drugs, Drugs,BAXTER HEALTHCARE LTD,0000665459," 98,424.78 ",
Department of Health,The Christie NHS Foundation Trust,13/05/2021, Drugs, Drugs,BAXTER HEALTHCARE LTD,0000665992," 100,253.03 ",
Department of Health,The Christie NHS Foundation Trust,20/05/2021, Drugs, Drugs,BAXTER HEALTHCARE LTD,0000666515," 105,212.76 ",
Department of Health,The Christie NHS Foundation Trust,06/05/2021, Drugs, Drugs,BAXTER HEALTHCARE LTD,0000665539," 107,058.40 ",
Department of Health,The Christie NHS Foundation Trust,20/05/2021, Drugs, Drugs,BAXTER HEALTHCARE LTD,0000666516," 107,816.36 ",
Department of Health,The Christie NHS Foundation Trust,13/05/2021, Drugs, Drugs,BAXTER HEALTHCARE LTD,0000666060," 111,974.82 ",
Department of Health,The Christie NHS Foundation Trust,13/05/2021, Drugs, Drugs,BAXTER HEALTHCARE LTD,0000666514," 122,725.15 ",
Department of Health,The Christie NHS Foundation Trust,06/05/2021, Drugs, Drugs,BAXTER HEALTHCARE LTD,0000665465," 124,299.96 ",
Department of Health,The Christie NHS Foundation Trust,13/05/2021, Drugs, Drugs,BAXTER HEALTHCARE LTD,0000666017," 146,227.58 ",
Department of Health,The Christie NHS Foundation Trust,20/05/2021, Drugs, Drugs,BAXTER HEALTHCARE LTD,0000666954," 183,886.52 ",
Department of Health,The Christie NHS Foundation Trust,13/05/2021, Drugs, Drugs,BAXTER HEALTHCARE LTD,0000667067," 355,904.40 ",
Department of Health,The Christie NHS Foundation Trust,13/05/2021,Blood Products,Network Services,NHS BLOOD AND TRANSPLANT,0000665917," 28,346.66 ",
Department of Health,The Christie NHS Foundation Trust,20/05/2021,Electricity Invoice - April 2021,Network Services,EDF ENERGY,0000667695," 37,088.97 ",
Department of Health,The Christie NHS Foundation Trust,20/05/2021,Electricity Invoice - April 2021,Network Services,EDF ENERGY,0000667696," 55,307.37 ",
Department of Health,The Christie NHS Foundation Trust,20/05/2021,Medical Systems Purchase,Network Services,NHS SUPPLY CHAIN,0000666728," 72,765.94 ",
Department of Health,The Christie NHS Foundation Trust,06/05/2021,Blood Products,Network Services,DD NHS BLOOD AND TRANSPLANT,0000665915," 160,265.00 ",
Department of Health,The Christie NHS Foundation Trust,27/05/2021,Service Contract,Network Services,VARIAN MEDICAL SYSTEMS UK LTD,0000666764," 211,348.00 ",
Department of Health,The Christie NHS Foundation Trust,13/05/2021,Medical Equipment,Network Services,GILEAD SCIENCES LTD,0000666335," 224,360.80 ",
Department of Health,The Christie NHS Foundation Trust,06/05/2021,Medical Equipment,Network Services,GILEAD SCIENCES LTD,0000665787," 224,360.80 ",
Department of Health,The Christie NHS Foundation Trust,27/05/2021,Service Contract,Network Services,VARIAN MEDICAL SYSTEMS UK LTD,0000668688," 233,713.86 ",
Department of Health,The Christie NHS Foundation Trust,20/05/2021,Facilities Management Services - June 2021,Christie Pathology Partner,CPP FACILITIES LLP,0000667616," 180,459.89 ",
Department of Health,The Christie NHS Foundation Trust,06/05/2021,Facilities Management Services - May 2021,Christie Pathology Partner,CPP FACILITIES LLP,0000665531," 180,459.89 ",
Department of Health,The Christie NHS Foundation Trust,06/05/2021,Facilities Management Services - March 2021,Christie Pathology Partner,CPP FACILITIES LLP,0000666673," 235,050.94 ",
Department of Health,The Christie NHS Foundation Trust,13/05/2021,Pathology Testing Services - May 2021,Christie Pathology Partner,THE CHRISTIE PATHOLOGY PARTNERSHIP LLP,0000665519," 379,726.40 ",
Department of Health,The Christie NHS Foundation Trust,20/05/2021,Pathology Testing Services - June 2021,Christie Pathology Partner,THE CHRISTIE PATHOLOGY PARTNERSHIP LLP,0000667609," 379,726.40 ",
Department of Health,The Christie NHS Foundation Trust,13/05/2021,Pathology Testing Services - March 2021,Christie Pathology Partner,THE CHRISTIE PATHOLOGY PARTNERSHIP LLP,0000666668," 494,597.68 ",
Department of Health,The Christie NHS Foundation Trust,13/05/2021,Risk Management Software - Annual Charge, Quality & Standards,DATIX LTD,0000665901," 37,653.78 ",
Department of Health,The Christie NHS Foundation Trust,17/05/2021,Litigation Fee - May 2021, Quality & Standards,DD NHS LITIGATION AUTHORITY,0000667872," 177,439.90 ",
Department of Health,The Christie NHS Foundation Trust,06/05/2021,NHS Trusts- Annual Fee (based on Op Rev), Quality & Standards,CARE QUALITY COMMISSION,0000666576," 223,477.00 ",
Department of Health,The Christie NHS Foundation Trust,13/05/2021,Consultancy Services,School of Oncology,CHARTA MEDICAL,0000666133," 30,375.00 ",
Department of Health,The Christie NHS Foundation Trust,27/05/2021,Energy Costs ,Estates & Facilities,VITAL ENERGI SOLUTIONS LTD,0000666730," 72,536.21 ",
Department of Health,The Christie NHS Foundation Trust,07/05/2021,Rates,Estates & Facilities,DD M/CR CITY COUNCIL (RATES),0000667706," 75,627.00 ",
Department of Health,The Christie NHS Foundation Trust,27/05/2021,NHS Patient Bed Fees,Other Income Levies and Gra,THE CHRISTIE CLINIC (HCA),0000667176," 163,810.18 ",
Department of Health,The Christie NHS Foundation Trust,20/05/2021,Medical Equipment, Christie Medical Physics,ADVANCED ACCELERATOR APPLICATIONS LTD,0000666717," 31,722.00 ",
Department of Health,The Christie NHS Foundation Trust,13/05/2021,Drugs, Christie Medical Physics,ALLIANCE MEDICAL RADIOPHARMACY LIMITED,0000666243," 31,936.20 ",
Department of Health,The Christie NHS Foundation Trust,20/05/2021,Medical Physics SLA Invoice, Christie Medical Physics,NEWCASTLE UPON TYNE HOSPITALS NHS,0000666117," 33,016.00 ",
Department of Health,The Christie NHS Foundation Trust,20/05/2021,Health Innovation Annual Subscription, Research & Innovation,MANCHESTER UNIVERSITY NHS FT,0000665929," 260,000.00 ",
Department of Health,The Christie NHS Foundation Trust,20/05/2021,Construction Works,Capital,CLC CONTRACTORS LTD,0000666796," 22,130.07 ",
Department of Health,The Christie NHS Foundation Trust,20/05/2021,Consultancy Fees,Capital,INSIGHT DIRECT (UK) LTD,0000665413," 27,000.00 ",
Department of Health,The Christie NHS Foundation Trust,06/05/2021,Lighting Solutions Costs,Capital,A COPELAND GROUP LTD,0000666975," 48,082.13 ",
Department of Health,The Christie NHS Foundation Trust,27/05/2021,Project Management Fee,Capital,ARCADIS LLP,0000666901," 60,815.41 ",
Department of Health,The Christie NHS Foundation Trust,13/05/2021,Energy Installation Works,Capital,ELECTRICITY NORTHWEST ENERGY SOLUTIONS,0000667225," 79,305.38 ",
Department of Health,The Christie NHS Foundation Trust,27/05/2021,Energy Costs ,Capital,VITAL ENERGI SOLUTIONS LTD,666046," 338,043.00 ",
Department of Health,The Christie NHS Foundation Trust,27/05/2021,Energy Costs ,Capital,VITAL ENERGI SOLUTIONS LTD,0000667208," 376,621.00 ",
Department of Health,The Christie NHS Foundation Trust,13/05/2021,Multi-Car Park Construction Works,Capital,VINCI CONSTRUCTION UK LIMITED,0000667404," 611,548.00 ",
Department of Health,The Christie NHS Foundation Trust,20/05/2021,The Christie at Macclesfield Works,Capital,VINCI CONSTRUCTION UK LIMITED,0000667526," 1,645,107.60 ",
Department of Health,The Christie NHS Foundation Trust,06/05/2021,Paterson Redevelopment Project Works,Capital,INTEGRATED HEALTH PROJECTS,0000666936," 2,084,258.40 ",
Department of Health,The Christie NHS Foundation Trust,20/05/2021,Cyber Security Works,Digital Services,CHESS CYBERSECURITY LTD,0000665054," 22,336.00 ",
Department of Health,The Christie NHS Foundation Trust,13/05/2021,System Support Package - May 2021,Digital Services,SYSTEM C HEALTHCARE,0000665853," 23,362.71 ",
Department of Health,The Christie NHS Foundation Trust,13/05/2021,Computer Equipment,Digital Services,SOFTCAT PLC,0000666166," 26,651.87 ",
Department of Health,The Christie NHS Foundation Trust,06/05/2021,Data Software Purchase,Digital Services,ILLUMIT,0000666365," 26,930.57 ",
Department of Health,The Christie NHS Foundation Trust,27/05/2021,Network Services,Digital Services,VIRGIN MEDIA BUSINESS,0000667166," 27,720.00 ",
Department of Health,The Christie NHS Foundation Trust,13/05/2021,Support and Maintenance Package ,Digital Services,INTERWORKS EUROPE LTD,0000664335," 56,360.00 ",
Department of Health,The Christie NHS Foundation Trust,27/05/2021,Laptop Purchase,Digital Services,CCS MEDIA LIMITED,0000667192," 56,400.00 ",
Department of Health,The Christie NHS Foundation Trust,27/05/2021,Software Maintenance & Licencing Purchase,Digital Services,EUROPEAN ELECTRONIQUE LTD,0000667130," 241,869.43 ",
Department of Health,The Christie NHS Foundation Trust,20/05/2021,Software Subscription Package,Digital Services,SOFTCAT PLC,0000666710," 249,512.72 ",
Department of Health,The Christie NHS Foundation Trust,06/05/2021,All Wards & Departments,The Christie NHS FT Balance,NHS SUPPLY CHAIN,0000665781," 67,434.42 ",
Department of Health,The Christie NHS Foundation Trust,13/05/2021,All Wards & Departments,The Christie NHS FT Balance,NHS SUPPLY CHAIN,0000666546," 76,122.29 ",
Department of Health,The Christie NHS Foundation Trust,20/05/2021,All Wards & Departments,The Christie NHS FT Balance,NHS SUPPLY CHAIN,0000666547," 83,936.14 ",
Department of Health,The Christie NHS Foundation Trust,06/05/2021,Blood Products,The Christie NHS FT Balance,DD NHS BLOOD AND TRANSPLANT,BAN5000492," 160,265.00 ",
Department of Health,The Christie NHS Foundation Trust,06/05/2021,Blood Products,The Christie NHS FT Balance,DD NHS BLOOD AND TRANSPLANT,BAN5000492," 160,265.00 ",
